bitfinex/quotes_BTCUSD_20250910
["timestamp","ask_amount","ask_price","bid_price","bid_amount"]
[1757518274317,0.36512658,113820.0,113760.0,0.35895317]
[1757518274520,0.51580872,113760.0,113750.0,0.00056666]
[1757518274742,0.22338403,113760.0,113750.0,0.00103454]
[1757518274924,0.19212005,113760.0,113750.0,0.00103454]
[1757518275201,0.36664797,113760.0,113750.0,0.00103454]
[1757518275419,0.20229664,113760.0,113750.0,0.00103454]
[1757518275640,0.21864454,113760.0,113750.0,0.00103454]
[1757518276112,0.21864454,113760.0,113750.0,0.00303454]
[1757518276334,0.34835455,113760.0,113750.0,0.00303454]
[1757518276556,0.21864454,113760.0,113750.0,0.00303454]
[1757518276998,0.21864454,113760.0,113750.0,0.00103454]
[1757518277262,0.218536,113760.0,113750.0,0.00103454]
[1757518277752,0.218536,113760.0,113750.0,0.00203454]
[1757518277995,0.218536,113760.0,113750.0,0.00423234]
[1757518278212,0.20219664,113760.0,113750.0,0.00423234]
[1757518278423,0.21862358,113760.0,113750.0,0.00423234]
[1757518278873,0.17582417,113750.0,113740.0,0.3782862]
[1757518279082,0.17582417,113750.0,113740.0,0.5533409]
[1757518279293,0.17592417,113750.0,113740.0,0.5533409]
[1757518280375,0.17592417,113750.0,113740.0,0.37750153]
[1757518280597,0.0001,113750.0,113740.0,0.55534116]
[1757518280806,0.0001,113750.0,113740.0,0.89534116]
[1757518281239,0.0001,113750.0,113740.0,0.89544116]
[1757518282276,0.17592417,113750.0,113740.0,1.11960153]
[1757518282681,0.17592417,113750.0,113740.0,1.12160153]
[1757518283300,0.17592417,113750.0,113740.0,1.26976153]
[1757518284703,0.17592417,113750.0,113740.0,1.44560116]
[1757518285270,0.17592417,113750.0,113740.0,1.26976153]
[1757518285470,0.17592417,113750.0,113740.0,1.26972153]
[1757518285702,0.17592417,113750.0,113740.0,1.44556116]
[1757518286780,0.0001,113750.0,113740.0,1.44556116]
[1757518287775,0.0001,113750.0,113740.0,1.44879116]
[1757518289431,0.17592417,113750.0,113740.0,1.44879116]
[1757518289613,0.17592417,113750.0,113740.0,1.44556116]
[1757518289819,0.17906417,113750.0,113740.0,1.44556116]
[1757518290473,0.17906417,113750.0,113740.0,1.29744116]
[1757518290692,0.17906417,113750.0,113740.0,1.44556116]
[1757518290899,0.17906417,113750.0,113740.0,1.29744116]
[1757518291107,0.17906417,113750.0,113740.0,1.44556116]
[1757518291316,0.17906417,113750.0,113740.0,1.29744116]
[1757518291524,0.17906417,113750.0,113740.0,0.52772153]
[1757518291704,0.17906417,113750.0,113740.0,0.70352116]
[1757518291907,0.17906417,113750.0,113740.0,0.70552116]
[1757518293452,0.17906417,113750.0,113740.0,0.70352116]
[1757518293678,0.17906417,113750.0,113740.0,0.52968153]
[1757518295004,0.17906417,113750.0,113740.0,0.70552116]
[1757518295698,0.17906417,113750.0,113740.0,1.10552116]
[1757518295929,0.0001,113750.0,113740.0,1.10552116]
[1757518296158,0.0001,113750.0,113740.0,1.10875116]
[1757518297737,0.0001,113750.0,113740.0,1.17474439]
[1757518298805,0.17592417,113750.0,113740.0,1.17151439]
[1757518298990,0.17906417,113750.0,113740.0,1.17175439]
[1757518299451,0.00324,113750.0,113740.0,1.17175439]
[1757518299651,0.17906417,113750.0,113740.0,1.17175439]
[1757518299869,0.17906417,113750.0,113740.0,1.02343439]
[1757518300094,0.17906417,113750.0,113740.0,1.10576116]
[1757518300795,0.17906417,113750.0,113740.0,0.52992153]
[1757518300999,0.17906417,113750.0,113740.0,0.70576116]
[1757518302024,0.17906417,113750.0,113740.0,0.77122049]
[1757518303286,0.17906417,113750.0,113740.0,0.44706086]
[1757518303526,0.17906417,113750.0,113740.0,0.59530086]
[1757518303733,0.17906417,113750.0,113740.0,0.59526086]
[1757518303945,0.17906417,113750.0,113740.0,0.77110049]
[1757518304887,0.17906417,113750.0,113740.0,1.17110049]
[1757518306651,0.10406417,113750.0,113740.0,1.19398049]
[1757518306863,0.10406417,113750.0,113740.0,1.17110049]
[1757518307078,0.12688417,113750.0,113740.0,0.99526086]
[1757518307267,0.12688417,113750.0,113740.0,0.74366403]
[1757518307812,0.12688417,113750.0,113740.0,0.60435671]
[1757518308046,0.12688417,113750.0,113740.0,0.75283671]
[1757518308507,0.10406417,113750.0,113740.0,0.28737738]
[1757518308713,0.10720417,113750.0,113740.0,0.28737738]
[1757518309167,0.10720417,113750.0,113740.0,0.86321701]
[1757518309464,0.10720417,113750.0,113740.0,0.68737738]
[1757518309676,0.10720417,113750.0,113740.0,0.86321701]
[1757518309897,0.10720417,113750.0,113740.0,0.68737738]
[1757518311500,0.10720417,113750.0,113740.0,0.86321701]
[1757518312850,0.10720417,113750.0,113740.0,0.68737738]
[1757518314949,0.10720417,113750.0,113740.0,0.86321701]
[1757518316688,0.10720417,113750.0,113740.0,0.68737738]
[1757518316914,0.10720417,113750.0,113740.0,0.86321701]
[1757518317406,0.10720417,113750.0,113740.0,0.50052386]
[1757518317605,0.26151466,113750.0,113740.0,0.15246]
[1757518317816,0.25931676,113750.0,113740.0,0.15246]
[1757518318460,0.25931676,113750.0,113740.0,0.16135035]
[1757518320072,0.10720417,113750.0,113740.0,0.16135035]
[1757518320277,0.26151466,113750.0,113740.0,0.16135035]
[1757518320517,0.25931676,113750.0,113740.0,0.16135035]
[1757518320868,0.25931676,113750.0,113740.0,0.15238]
[1757518322563,0.25931676,113750.0,113740.0,0.0041]
[1757518322788,0.25931676,113750.0,113740.0,0.15238]
[1757518322996,0.25931676,113750.0,113740.0,0.0041]
[1757518323203,0.77074747,113750.0,113740.0,0.0041]
[1757518323407,0.78713014,113750.0,113740.0,0.0041]
[1757518323628,0.78713014,113750.0,113740.0,0.0001]
[1757518323826,0.82218077,113750.0,113740.0,0.15242]
[1757518324029,0.83037204,113750.0,113740.0,0.15242]
[1757518324233,0.67006818,113750.0,113740.0,0.14842]
[1757518324472,0.66150789,113750.0,113740.0,0.14842]
[1757518324679,0.66150789,113750.0,113740.0,0.14942]
[1757518324881,0.81362048,113750.0,113740.0,0.14942]
[1757518325107,0.75483987,113750.0,113740.0,0.14942]
[1757518326134,0.75483987,113750.0,113740.0,0.15042]
[1757518326334,0.60272728,113750.0,113740.0,0.15042]
[1757518326626,0.12368684,113750.0,113740.0,0.15032]
[1757518326840,0.10950207,113750.0,113740.0,0.15032]
[1757518327049,0.26161466,113750.0,113740.0,0.15032]
[1757518327271,0.25941676,113750.0,113740.0,0.15032]
[1757518327690,0.10730417,113750.0,113740.0,0.15032]
[1757518327899,0.26161466,113750.0,113740.0,0.15032]
[1757518328102,0.25941676,113750.0,113740.0,0.15032]
[1757518328324,0.10730417,113750.0,113740.0,0.15032]
[1757518328527,0.26161466,113750.0,113740.0,0.15032]
[1757518328735,0.25941676,113750.0,113740.0,0.15032]
[1757518328948,0.10730417,113750.0,113740.0,0.15032]
[1757518329193,0.26161466,113750.0,113740.0,0.15032]
[1757518329446,0.25941676,113750.0,113740.0,0.15032]
[1757518329966,0.10730417,113750.0,113740.0,0.15032]
[1757518330219,0.26161466,113750.0,113740.0,0.15032]
[1757518330472,0.25941676,113750.0,113740.0,0.15032]
[1757518331139,0.10730417,113750.0,113740.0,0.15032]
[1757518331335,0.10950207,113750.0,113740.0,0.15032]
[1757518331769,0.26161466,113750.0,113740.0,0.002]
[1757518331987,0.25941676,113750.0,113740.0,0.002]
[1757518332202,0.25941676,113750.0,113740.0,0.15112]
[1757518333495,0.10730417,113750.0,113740.0,0.15112]
[1757518333711,0.26161466,113750.0,113740.0,0.002]
[1757518333909,0.25941676,113750.0,113740.0,0.15108]
[1757518334367,0.10730417,113750.0,113740.0,0.15108]
[1757518334537,0.30425534,113750.0,113740.0,0.15108]
[1757518334742,0.30205744,113750.0,113740.0,0.15108]
[1757518335748,0.10730417,113750.0,113740.0,0.15108]
[1757518335952,0.30425534,113750.0,113740.0,0.15108]
[1757518336164,0.30205744,113750.0,113740.0,0.15108]
[1757518337410,0.10730417,113750.0,113740.0,0.15108]
[1757518337609,0.10950207,113750.0,113740.0,0.15108]
[1757518337826,0.30641534,113750.0,113740.0,0.15108]
[1757518338023,0.30421744,113750.0,113740.0,0.15108]
[1757518339012,0.10946417,113750.0,113740.0,0.15108]
[1757518339219,0.10632417,113750.0,113740.0,0.32911762]
[1757518339433,0.10632417,113750.0,113740.0,0.32691963]
[1757518339638,0.10926417,113750.0,113740.0,0.32691963]
[1757518339915,0.11146207,113750.0,113740.0,0.32691963]
[1757518340982,0.11146207,113750.0,113740.0,0.32701963]
[1757518341194,0.11146207,113750.0,113740.0,0.41455081]
[1757518342227,0.11146207,113750.0,113740.0,0.32701963]
[1757518342546,0.10926417,113750.0,113740.0,0.32701963]
[1757518342754,0.11146207,113750.0,113740.0,0.32701963]
[1757518343159,0.11146207,113750.0,113740.0,0.39449963]
[1757518343467,0.11146207,113750.0,113740.0,0.21838]
[1757518343671,0.30621534,113750.0,113740.0,0.30587118]
[1757518343871,0.30401744,113750.0,113740.0,0.30587118]
[1757518345100,0.10926417,113750.0,113740.0,0.30587118]
[1757518345317,0.30621534,113750.0,113740.0,0.30587118]
[1757518345515,0.30401744,113750.0,113740.0,0.30587118]
[1757518345712,0.30401744,113750.0,113740.0,0.48171081]
[1757518346119,0.30401744,113750.0,113740.0,0.30587118]
[1757518346366,0.10926417,113750.0,113740.0,0.48171081]
[1757518346611,0.11146207,113750.0,113740.0,0.48171081]
[1757518346812,0.10852207,113750.0,113740.0,0.48171081]
[1757518347019,0.10852207,113750.0,113740.0,0.30587118]
[1757518347688,0.11153207,113750.0,113740.0,0.30587118]
[1757518347910,0.11153207,113750.0,113740.0,0.15711118]
[1757518348088,0.30628534,113750.0,113740.0,0.30583118]
[1757518348290,0.30408744,113750.0,113740.0,0.30583118]
[1757518348931,0.10933417,113750.0,113740.0,0.30583118]
[1757518349141,0.30628534,113750.0,113740.0,0.30579118]
[1757518349360,0.10933417,113750.0,113740.0,0.30579118]
[1757518349521,0.30628534,113750.0,113740.0,0.21826]
[1757518349725,0.30408744,113750.0,113740.0,0.21826]
[1757518349926,0.10933417,113750.0,113740.0,0.39409963]
[1757518350131,0.0001,113750.0,113740.0,0.63662315]
[1757518350379,0.0001,113750.0,113740.0,0.94856433]
[1757518350763,0.0001,113750.0,113740.0,1.68856433]
[1757518351363,0.0001,113750.0,113740.0,1.68656433]
[1757518351796,0.0001,113750.0,113740.0,1.69056433]
[1757518352246,0.0001,113750.0,113740.0,1.68856433]
[1757518352603,0.0001,113750.0,113740.0,1.69056433]
[1757518352799,0.0001,113750.0,113740.0,1.75582592]
[1757518353017,0.0001,113750.0,113740.0,1.77340592]
[1757518353948,0.0001,113750.0,113740.0,1.77140592]
[1757518354160,0.0001,113750.0,113740.0,1.76940592]
[1757518354346,0.0001,113750.0,113740.0,1.78040592]
[1757518354782,0.0001,113750.0,113740.0,1.76282592]
[1757518355216,0.00046791,113760.0,113750.0,0.71582417]
[1757518355433,0.00046791,113760.0,113750.0,0.89087887]
[1757518355653,0.00046791,113760.0,113750.0,0.92028887]
[1757518355873,0.00046791,113760.0,113750.0,1.32028887]
[1757518356947,0.00046791,113760.0,113750.0,1.32428887]
[1757518357163,0.00046791,113760.0,113750.0,1.32728887]
[1757518357369,0.00046791,113760.0,113750.0,1.32738887]
[1757518358543,0.00046791,113760.0,113750.0,1.35251545]
[1757518359231,0.00046791,113760.0,113750.0,1.50123545]
[1757518359459,0.00046791,113760.0,113750.0,1.35251545]
[1757518359691,0.00046791,113760.0,113750.0,1.50119545]
[1757518360641,0.00046791,113760.0,113750.0,1.50143545]
[1757518369207,0.00046791,113760.0,113750.0,1.55143545]
[1757518369425,0.00046791,113760.0,113750.0,1.60143545]
[1757518369644,0.00046791,113760.0,113750.0,1.45251545]
[1757518369847,0.00046791,113760.0,113750.0,1.60151545]
[1757518370956,0.00046791,113760.0,113750.0,1.55151545]
[1757518371168,0.00046791,113760.0,113750.0,1.60151545]
[1757518371379,0.00046791,113760.0,113750.0,1.60155545]
[1757518371563,0.00046791,113760.0,113750.0,1.45251545]
[1757518371866,0.00046791,113760.0,113750.0,1.60155545]
[1757518374989,1e-08,113760.0,113750.0,1.60155545]
[1757518376177,1e-08,113760.0,113750.0,1.55155545]
[1757518376607,1e-08,113760.0,113750.0,1.60155545]
[1757518377063,1e-08,113760.0,113750.0,1.60167545]
[1757518377891,1e-08,113760.0,113750.0,1.40251545]
[1757518378162,1e-08,113760.0,113750.0,1.50199545]
[1757518378379,1e-08,113760.0,113750.0,1.52694887]
[1757518380279,1e-08,113760.0,113750.0,1.55207545]
[1757518382988,1e-08,113760.0,113750.0,1.60207545]
[1757518383665,1e-08,113760.0,113750.0,1.55207545]
[1757518383882,1e-08,113760.0,113750.0,1.60207545]
[1757518384090,1e-08,113760.0,113750.0,1.55207545]
[1757518385343,1e-08,113760.0,113750.0,1.60207545]
[1757518385550,1e-08,113760.0,113750.0,1.71238514]
[1757518385765,1e-08,113760.0,113750.0,1.73875347]
[1757518385971,1e-08,113760.0,113750.0,1.62844378]
[1757518386186,0.07061254,113800.0,113790.0,1.06576236]
[1757518386408,0.07061254,113800.0,113790.0,1.69836398]
[1757518386628,0.07061254,113800.0,113790.0,2.09844398]
[1757518387495,0.07061254,113800.0,113790.0,2.11309103]
[1757518387908,0.07061254,113800.0,113790.0,1.76333103]
[1757518388139,0.07061254,113800.0,113790.0,1.91309103]
[1757518388564,0.0001,113800.0,113790.0,1.91309103]
[1757518388987,0.0001,113800.0,113790.0,1.91319103]
[1757518390579,0.18097692,113800.0,113790.0,1.19385103]
[1757518390819,0.18097692,113800.0,113790.0,1.34365103]
[1757518391252,0.00226,113800.0,113790.0,1.34365103]
[1757518391464,0.00226,113800.0,113790.0,1.34065103]
[1757518391896,0.00226,113800.0,113790.0,1.34165103]
[1757518392336,0.00226,113800.0,113790.0,1.33765103]
[1757518392759,0.00226,113800.0,113790.0,1.34298103]
[1757518392972,0.0001,113800.0,113790.0,1.34298103]
[1757518393423,0.0011,113800.0,113790.0,1.34298103]
[1757518393667,0.00326,113800.0,113790.0,1.34298103]
[1757518393904,0.00326,113800.0,113790.0,1.33765103]
[1757518395193,0.17900692,113800.0,113790.0,1.33765103]
[1757518396243,0.0011,113800.0,113790.0,1.34298103]
[1757518396455,0.0011,113800.0,113790.0,1.36723103]
[1757518397065,0.0011,113800.0,113790.0,1.01208867]
[1757518397066,0.18197692,113800.0,113790.0,1.01208867]
[1757518397291,0.18197692,113800.0,113790.0,0.95124867]
[1757518397715,0.18197692,113800.0,113790.0,0.55124867]
[1757518397913,0.18197692,113800.0,113790.0,0.40124867]
[1757518398121,0.31169266,113800.0,113790.0,0.06758692]
[1757518398354,0.31169266,113800.0,113790.0,0.21754692]
[1757518398904,0.18197692,113800.0,113790.0,0.21754692]
[1757518399102,0.31169266,113800.0,113790.0,0.21754692]
[1757518400286,0.18197692,113800.0,113790.0,0.21754692]
[1757518400654,0.18197692,113800.0,113790.0,0.25777545]
[1757518401803,0.31169266,113800.0,113790.0,0.21742692]
[1757518402195,0.18197692,113800.0,113790.0,0.21742692]
[1757518405756,0.31169266,113800.0,113790.0,0.21738692]
[1757518407460,0.31169266,113800.0,113790.0,0.21734692]
[1757518408616,0.18197692,113800.0,113790.0,0.21734692]
[1757518408763,0.18197692,113800.0,113790.0,0.14779537]
[1757518408999,0.18197692,113800.0,113790.0,0.29755537]
[1757518410566,0.31169266,113800.0,113790.0,0.29751537]
[1757518410778,0.18197692,113800.0,113790.0,0.29751537]
[1757518411429,0.18197692,113800.0,113790.0,0.29755537]
[1757518412994,0.31169266,113800.0,113790.0,0.29755537]
[1757518413368,0.31169266,113800.0,113790.0,0.21730692]
[1757518414005,0.31169266,113800.0,113790.0,0.06758692]
[1757518414197,0.31169266,113800.0,113790.0,0.21730692]
[1757518414608,0.17900692,113800.0,113790.0,0.39306928]
[1757518414821,0.18415482,113800.0,113790.0,0.21730692]
[1757518415034,0.18195692,113800.0,113790.0,0.29751135]
[1757518415332,0.18195692,113800.0,113790.0,0.21730692]
[1757518415534,0.18195692,113800.0,113790.0,0.39306928]
[1757518415753,0.18195692,113800.0,113790.0,0.21730692]
[1757518415963,0.18195692,113800.0,113790.0,0.39306928]
[1757518416190,0.18195692,113800.0,113790.0,0.48060046]
[1757518416662,0.17900692,113800.0,113790.0,0.48060046]
[1757518416892,0.00326,113800.0,113790.0,0.48257046]
[1757518417119,0.00326,113800.0,113790.0,0.48556046]
[1757518417350,0.00326,113800.0,113790.0,0.63556046]
[1757518417614,0.0011,113800.0,113790.0,1.03556046]
[1757518418080,0.0011,113800.0,113790.0,1.05840046]
[1757518418310,0.0011,113800.0,113790.0,1.34592398]
[1757518419215,0.0001,113800.0,113790.0,1.34592398]
[1757518419688,0.0001,113800.0,113790.0,1.20020398]
[1757518419901,0.00207,113800.0,113790.0,1.34996398]
[1757518420146,0.00207,113800.0,113790.0,1.32712398]
[1757518420562,0.0001,113800.0,113790.0,1.34996398]
[1757518420773,0.0001,113800.0,113790.0,1.34796398]
[1757518421190,0.0001,113800.0,113790.0,1.19820398]
[1757518421408,0.0001,113800.0,113790.0,1.34852398]
[1757518421643,0.0001,113800.0,113790.0,1.34652398]
[1757518421855,0.0001,113800.0,113790.0,1.34752398]
[1757518422675,0.0001,113800.0,113790.0,1.68752398]
[1757518423158,0.0001,113800.0,113790.0,1.76646933]
[1757518424454,0.0001,113800.0,113790.0,1.68752398]
[1757518425767,0.0001,113800.0,113790.0,1.53720398]
[1757518426173,0.0001,113800.0,113790.0,1.68764398]
[1757518426634,0.0001,113800.0,113790.0,1.53720398]
[1757518426833,0.0001,113800.0,113790.0,1.68760398]
[1757518427503,0.00207,113800.0,113790.0,1.31137398]
[1757518427724,0.00207,113800.0,113790.0,1.65976398]
[1757518427947,0.17781692,113800.0,113790.0,1.65988398]
[1757518428166,0.00207,113800.0,113790.0,1.65988398]
[1757518428388,0.00207,113800.0,113790.0,1.31988398]
[1757518428604,0.00207,113800.0,113790.0,1.16940398]
[1757518428815,0.00207,113800.0,113790.0,1.31888398]
[1757518429047,0.00207,113800.0,113790.0,1.31988398]
[1757518429272,0.17781692,113800.0,113790.0,1.16940398]
[1757518429492,0.18076692,113800.0,113790.0,0.96940398]
[1757518429721,0.18296482,113800.0,113790.0,1.03248046]
[1757518429937,0.18176692,113800.0,113790.0,1.03248046]
[1757518430161,0.18396482,113800.0,113790.0,1.03248046]
[1757518430423,0.18396482,113800.0,113790.0,1.03148046]
[1757518430637,0.0052679,113800.0,113790.0,1.03148046]
[1757518430854,0.00307,113800.0,113790.0,1.03148046]
[1757518431079,0.00307,113800.0,113790.0,1.03345046]
[1757518431307,0.00307,113800.0,113790.0,1.14680398]
[1757518431308,0.0011,113800.0,113790.0,1.14680398]
[1757518432193,0.0011,113800.0,113790.0,1.68680398]
[1757518432432,0.0001,113800.0,113790.0,1.68680398]
[1757518433608,0.0001,113800.0,113790.0,1.68800398]
[1757518434075,0.0001,113800.0,113790.0,1.68700398]
[1757518434349,0.0001,113800.0,113790.0,1.68800398]
[1757518434819,0.0001,113800.0,113790.0,1.53720398]
[1757518435071,0.0001,113800.0,113790.0,1.68796398]
[1757518436247,0.00219,113800.0,113790.0,1.66016398]
[1757518436512,0.00522,113800.0,113790.0,1.30940398]
[1757518436781,0.00522,113800.0,113790.0,1.46008398]
[1757518437257,0.00522,113800.0,113790.0,1.45908398]
[1757518437500,0.00522,113800.0,113790.0,1.46008398]
[1757518437942,0.00219,113800.0,113790.0,1.45908398]
[1757518438464,0.00219,113800.0,113790.0,1.46400398]
[1757518438681,0.0001,113800.0,113790.0,1.46400398]
[1757518438898,0.0011,113800.0,113790.0,1.48781398]
[1757518440627,0.00319,113800.0,113790.0,1.30840398]
[1757518440853,0.00319,113800.0,113790.0,1.46388398]
[1757518441072,0.00319,113800.0,113790.0,1.46488398]
[1757518441296,0.00219,113800.0,113790.0,1.46193398]
[1757518441736,0.00219,113800.0,113790.0,1.46488398]
[1757518442452,0.0001,113800.0,113790.0,1.48869398]
[1757518443757,0.00219,113800.0,113790.0,1.48574398]
[1757518443875,0.00219,113800.0,113790.0,1.48869398]
[1757518444861,0.00219,113800.0,113790.0,1.45992398]
[1757518446238,0.00219,113800.0,113790.0,1.30940398]
[1757518446454,0.00219,113800.0,113790.0,0.94486928]
[1757518446455,0.18316482,113800.0,113790.0,0.94486928]
[1757518446674,0.18096692,113800.0,113790.0,0.94486928]
[1757518447147,0.18096692,113800.0,113790.0,0.76910692]
[1757518447376,0.37541659,113800.0,113790.0,0.21810692]
[1757518447794,0.37541659,113800.0,113790.0,0.61910692]
[1757518448008,0.37641659,113800.0,113790.0,0.61910692]
[1757518448239,0.37641659,113800.0,113790.0,0.64151766]
[1757518448711,0.37641659,113800.0,113790.0,0.24151766]
[1757518448924,0.37641659,113800.0,113790.0,0.21810692]
[1757518449367,0.56986626,113800.0,113790.0,0.21810692]
[1757518449595,0.57186626,113800.0,113790.0,0.21810692]
[1757518450051,0.37741659,113800.0,113790.0,0.21810692]
[1757518450278,0.37841659,113800.0,113790.0,0.21810692]
[1757518450502,0.37641659,113800.0,113790.0,0.24081803]
[1757518450718,0.18396692,113800.0,113790.0,0.24081803]
[1757518450943,0.37841659,113800.0,113790.0,0.24081803]
[1757518451173,0.38041659,113800.0,113790.0,0.24081803]
[1757518452060,0.38041659,113800.0,113790.0,0.21810692]
[1757518452488,0.18596692,113800.0,113790.0,0.21810692]
[1757518452724,0.38041659,113800.0,113790.0,0.21810692]
[1757518452941,0.40679276,113800.0,113790.0,0.21810692]
[1757518458203,0.21234309,113800.0,113790.0,0.21810692]
[1757518458417,0.40679276,113800.0,113790.0,0.21810692]
[1757518459109,0.40679276,113800.0,113790.0,0.39386928]
[1757518459331,0.40679276,113800.0,113790.0,0.26021223]
[1757518460010,0.21234309,113800.0,113790.0,0.26021223]
[1757518460222,0.40679276,113800.0,113790.0,0.26021223]
[1757518460663,0.40679276,113800.0,113790.0,0.06758692]
[1757518460880,0.40679276,113800.0,113790.0,0.21778692]
[1757518461209,0.60124243,113800.0,113790.0,0.21778692]
[1757518461665,0.60124243,113800.0,113790.0,0.06758692]
[1757518462128,0.9083422,113800.0,113790.0,0.00014692]
[1757518462324,1.28178997,113800.0,113790.0,0.00014692]
[1757518462741,1.47623964,113800.0,113790.0,0.00014692]
[1757518462951,1.47623964,113800.0,113790.0,4.692e-05]
[1757518463573,1.32603964,113800.0,113790.0,4.692e-05]
[1757518463767,1.28182997,113800.0,113790.0,4.692e-05]
[1757518463978,1.13158997,113800.0,113790.0,4.692e-05]
[1757518464190,1.28182997,113800.0,113790.0,4.692e-05]
[1757518464597,1.13158997,113800.0,113790.0,4.692e-05]
[1757518464811,1.28182997,113800.0,113790.0,4.692e-05]
[1757518466404,1.28178997,113800.0,113790.0,4.692e-05]
[1757518466758,0.74269063,113800.0,113790.0,4.692e-05]
[1757518466999,1.28178997,113800.0,113790.0,4.692e-05]
[1757518467452,1.05389253,113800.0,113790.0,4.692e-05]
[1757518467666,0.68876595,113800.0,113790.0,4.692e-05]
[1757518467887,0.71389253,113800.0,113790.0,4.692e-05]
[1757518469245,0.60124243,113800.0,113790.0,4.692e-05]
[1757518470349,0.40679276,113800.0,113790.0,4.692e-05]
[1757518470591,0.40679276,113800.0,113790.0,0.17580928]
[1757518470592,0.21234309,113800.0,113790.0,0.17580928]
[1757518470799,0.40679276,113800.0,113790.0,0.22629179]
[1757518471259,0.40679276,113800.0,113790.0,0.37641179]
[1757518471483,0.40679276,113800.0,113790.0,0.38150179]
[1757518471484,0.0051,113800.0,113790.0,0.38150179]
[1757518471939,0.00723,113800.0,113790.0,0.78150179]
[1757518472619,0.00223,113800.0,113790.0,0.77856179]
[1757518472829,0.00323,113800.0,113790.0,0.77856179]
[1757518473087,0.0031,113800.0,113790.0,1.06902531]
[1757518473314,0.0031,113800.0,113790.0,1.43341531]
[1757518474405,0.0031,113800.0,113790.0,1.58341531]
[1757518475602,0.0021,113800.0,113790.0,1.58341531]
[1757518475816,0.0001,113800.0,113790.0,1.78341531]
[1757518476245,0.0011,113800.0,113790.0,1.78351531]
[1757518476909,0.0001,113800.0,113790.0,1.78351531]
[1757518477308,0.0001,113800.0,113790.0,1.78451531]
[1757518477967,0.0001,113800.0,113790.0,1.78447531]
[1757518478850,0.0001,113800.0,113790.0,1.78443531]
[1757518479783,0.0001,113800.0,113790.0,1.63439531]
[1757518479988,0.0001,113800.0,113790.0,1.78439531]
[1757518480531,0.0001,113800.0,113790.0,1.63439531]
[1757518480739,0.0001,113800.0,113790.0,1.78439531]
[1757518481555,0.0001,113800.0,113790.0,1.63439531]
[1757518481761,0.0001,113800.0,113790.0,1.78431531]
[1757518482467,0.0001,113800.0,113790.0,1.63439531]
[1757518482673,0.0001,113800.0,113790.0,1.78431531]
[1757518483066,0.0001,113800.0,113790.0,1.63439531]
[1757518483268,0.0001,113800.0,113790.0,1.78431531]
[1757518488044,0.0001,113800.0,113790.0,1.86326066]
[1757518488707,1e-08,113800.0,113790.0,1.98838724]
[1757518489138,1e-08,113800.0,113790.0,1.90944189]
[1757518489346,1e-08,113800.0,113790.0,1.98804722]
[1757518489793,1e-08,113800.0,113790.0,1.98704722]
[1757518490021,1e-08,113800.0,113790.0,1.99004722]
[1757518490640,1e-08,113800.0,113790.0,1.99000722]
[1757518490880,1e-08,113800.0,113790.0,1.99400722]
[1757518491095,1e-08,113800.0,113790.0,1.84412722]
[1757518491368,1e-08,113800.0,113790.0,1.99396722]
[1757518494266,0.07051254,113830.0,113820.0,1.06571604]
[1757518494476,0.07051254,113830.0,113820.0,1.45789074]
[1757518494651,0.07051254,113830.0,113820.0,1.46005074]
[1757518494871,0.07051254,113830.0,113820.0,1.88812074]
[1757518495444,0.07051254,113830.0,113820.0,1.88912074]
[1757518495642,0.25506582,113850.0,113840.0,0.17568517]
[1757518495842,0.25715582,113850.0,113840.0,0.21301842]
[1757518496051,0.25715582,113850.0,113840.0,0.36046236]
[1757518496265,0.45160549,113850.0,113840.0,0.76046236]
[1757518496459,0.45472549,113850.0,113840.0,0.43513719]
[1757518496662,0.26027582,113850.0,113840.0,0.58477719]
[1757518496861,0.45572549,113850.0,113840.0,0.6510306]
[1757518497067,0.38521295,113850.0,113840.0,0.6510306]
[1757518497554,0.38721295,113850.0,113840.0,0.61589341]
[1757518497818,0.38721295,113850.0,113840.0,0.46625341]
[1757518498008,0.38721295,113850.0,113840.0,0.61589341]
[1757518498559,0.38721295,113850.0,113840.0,0.21589341]
[1757518498773,0.38721295,113850.0,113840.0,0.39157858]
[1757518499202,0.19276328,113850.0,113840.0,0.45728284]
[1757518499415,0.18964328,113850.0,113840.0,0.45728284]
[1757518499843,0.38409295,113850.0,113840.0,0.45728284]
[1757518500067,0.38409295,113850.0,113840.0,0.39117635]
[1757518500292,0.18964328,113850.0,113840.0,0.39117635]
[1757518500711,0.38409295,113850.0,113840.0,0.39117635]
[1757518500931,0.38721295,113850.0,113840.0,0.39117635]
[1757518501148,0.38721295,113850.0,113840.0,0.21541118]
[1757518501683,0.38721295,113850.0,113840.0,0.39109635]
[1757518502101,0.38721295,113850.0,113840.0,0.20643345]
[1757518502307,0.32235502,113850.0,113840.0,0.20643345]
[1757518502518,0.32235502,113850.0,113840.0,0.60643345]
[1757518502716,0.32235502,113850.0,113840.0,0.79076261]
[1757518502961,0.32235502,113850.0,113840.0,0.60643345]
[1757518503598,0.32235502,113850.0,113840.0,0.60635345]
[1757518503809,0.32235502,113850.0,113840.0,0.45687345]
[1757518504018,0.32235502,113850.0,113840.0,0.60631345]
[1757518504443,0.18755328,113850.0,113840.0,0.78733862]
[1757518504661,0.0031,113850.0,113840.0,0.81212862]
[1757518505100,0.0031,113850.0,113840.0,0.82102777]
[1757518505330,0.0031,113850.0,113840.0,1.10855129]
[1757518505944,0.0021,113850.0,113840.0,1.10855129]
[1757518506157,0.0001,113850.0,113840.0,1.10855129]
[1757518506358,0.0001,113850.0,113840.0,1.25855129]
[1757518506764,0.0011,113850.0,113840.0,1.45855129]
[1757518508207,0.0011,113850.0,113840.0,1.79855129]
[1757518509660,0.0001,113850.0,113840.0,1.79855129]
[1757518510098,0.0001,113850.0,113840.0,1.79955129]
[1757518514136,0.0001,113850.0,113840.0,1.80255129]
[1757518514504,0.0001,113850.0,113840.0,1.65011129]
[1757518514729,0.0001,113850.0,113840.0,1.80255129]
[1757518517061,0.0001,113850.0,113840.0,1.65011129]
[1757518517274,0.0001,113850.0,113840.0,1.80247129]
[1757518525356,0.0001,113850.0,113840.0,1.80203129]
[1757518525577,0.0001,113850.0,113840.0,1.42634612]
[1757518525803,0.0001,113850.0,113840.0,0.84756959]
[1757518525804,0.17774974,113850.0,113840.0,0.84756959]
[1757518526037,0.31059148,113850.0,113840.0,0.99952959]
[1757518526243,0.17774974,113850.0,113840.0,0.99952959]
[1757518527031,0.17874974,113850.0,113840.0,0.99952959]
[1757518527439,0.00308,113850.0,113840.0,1.00363959]
[1757518527633,0.00308,113850.0,113840.0,1.09117077]
[1757518527882,0.17874974,113850.0,113840.0,1.09117077]
[1757518528312,0.0011,113850.0,113840.0,1.11570077]
[1757518532207,0.0011,113850.0,113840.0,1.29138594]
[1757518532428,0.0011,113850.0,113840.0,1.83138594]
[1757518533978,0.0001,113850.0,113840.0,1.83110594]
[1757518534175,0.0001,113850.0,113840.0,1.83210594]